fUSD/lending_fUSD_20250404
["ID","MTS","AMOUNT","RATE_DAILY","PERIOD"]
[357103546,1743742281542,-2219.22,0.00052328,120]
[357103547,1743742281551,-2008.94,0.00052328,120]
[357103548,1743742281560,-751.55,0.00052328,120]
[357103549,1743742281569,-1907.67,0.00052328,120]
[357103550,1743742281579,-2210.43,0.00052328,120]
[357103551,1743742281588,-1861.33,0.00052328,120]
[357103552,1743742281597,-607.75,0.00052328,120]
[357103553,1743742281606,-10738.0,0.00052328,2]
[357103554,1743742281615,-525.26,0.00052328,120]
[357103555,1743742281624,-127491.97,0.00052328,7]
[357103556,1743742281634,-829.28,0.00052328,120]
[357103557,1743742281643,-500.0,0.00052328,120]
[357103558,1743742281652,-583.75,0.00052328,120]
[357103559,1743742281662,-2229.15,0.00052328,120]
[357103560,1743742281672,-1669.74,0.00052328,120]
[357103561,1743742281681,-500.0,0.00052328,120]
[357103562,1743742281694,-500.0,0.00052328,2]
[357103563,1743742281710,-529.37,0.00052328,120]
[357103564,1743742281725,-500.0,0.00052328,120]
[357103565,1743742281741,-500.0,0.00052328,2]
[357103566,1743742281757,-543.777,0.00052375,120]
[357103567,1743742281773,-543.777,0.00052375,120]
[357103568,1743742281788,-543.778,0.00052375,120]
[357103569,1743742281801,-543.777,0.00052375,120]
[357103570,1743742281815,-543.778,0.00052375,120]
[357103571,1743742281830,-150.0,0.00052488,120]
[357103572,1743742281845,-789826.65,0.000525,120]
[357103573,1743742281861,-300.0,0.000525,30]
[357103574,1743742281879,-4052.0,0.000525,120]
[357103575,1743742281895,-2000.0,0.0005255,31]
[357103576,1743742281909,-1627.45,0.00052602,120]
[357103577,1743742281924,-1661.534427,0.00052602,120]
[357103578,1743742281939,-1847.248262,0.00052602,120]
[357103579,1743742281952,-668.69,0.00052602,120]
[357103580,1743742281965,-500.0,0.00052602,120]
[357103581,1743742281983,-1018.55,0.00052602,10]
[357103582,1743742281994,-528.07,0.00052602,120]
[357103583,1743742282005,-500.0,0.00052602,30]
[357103584,1743742282021,-500.0,0.00052602,120]
[357103585,1743742282033,-2000.0,0.00052602,2]
[357103586,1743742282047,-636.7,0.00052602,120]
[357103587,1743742282059,-2104.44,0.00052602,120]
[357103588,1743742282073,-500.0,0.00052602,120]
[357103589,1743742282086,-1964.9,0.00052602,120]
[357103590,1743742282098,-500.0,0.00052602,120]
[357103591,1743742282111,-3250.94,0.00052602,2]
[357103592,1743742282124,-1041.18,0.00052602,120]
[357103593,1743742282137,-500.0,0.00052602,120]
[357103594,1743742282150,-1836.7,0.00052602,120]
[357103595,1743742282163,-500.0,0.00052602,120]
[357103596,1743742282177,-561.86,0.00052602,120]
[357103597,1743742282190,-1026.47,0.00052602,120]
[357103598,1743742282203,-500.0,0.00052602,120]
[357103599,1743742282216,-1708.57,0.00052602,120]
[357103600,1743742282229,-2260.17,0.00052602,120]
[357103601,1743742282241,-1847.64,0.00052602,120]
[357103602,1743742282255,-1600.29,0.00052602,120]
[357103603,1743742282268,-972.82,0.00052602,120]
[357103604,1743742282281,-1667.89,0.00052602,120]
[357103605,1743742282294,-1074.38,0.00052602,30]
[357103606,1743742282308,-2122.56,0.00052602,120]
[357103607,1743742282321,-500.0,0.00052602,120]
[357103608,1743742282333,-1956.99,0.00052602,120]
[357103609,1743742282347,-1120.02,0.00052602,120]
[357103610,1743742282360,-500.0,0.00052602,120]
[357103611,1743742282373,-1669.42,0.00052602,120]
[357103612,1743742282386,-500.0,0.00052602,120]
[357103613,1743742282399,-564.7380872,0.00052602,30]
[357103614,1743742282412,-533.22,0.00052602,2]
[357103615,1743742282425,-2109.35,0.00052602,120]
[357103616,1743742282438,-2628.48,0.00052602,120]
[357103617,1743742282451,-560.52,0.00052602,120]
[357103618,1743742282464,-1936.83,0.00052602,120]
[357103619,1743742282476,-1759.76,0.00052602,120]
[357103620,1743742282489,-2302.46,0.00052602,120]
[357103621,1743742282502,-1845.54,0.00052602,120]
[357103622,1743742282514,-2235.82,0.00052602,120]
[357103623,1743742282528,-650.53,0.00052602,120]
[357103624,1743742282540,-1764.75,0.00052602,120]
[357103625,1743742282553,-2294.51,0.00052602,120]
[357103626,1743742282566,-1798.97,0.00052602,120]
[357103627,1743742282579,-2061.78,0.00052602,120]
[357103628,1743742282592,-2212.69,0.00052602,120]
[357103629,1743742282605,-2600.67,0.00052602,120]
[357103630,1743742282618,-303.71387235,0.00052602,120]
[357103631,1743742282630,-1758.13,0.00052602,120]
[357103632,1743742282642,-2390.89,0.00052602,120]
[357103633,1743742282654,-1773.07,0.00052602,120]
[357103634,1743742282667,-1780.62,0.00052602,120]
[357103635,1743742282680,-2213.48,0.00052602,120]
[357103636,1743742282692,-500.0,0.00052602,120]
[357103637,1743742282706,-1740.8,0.00052602,120]
[357103638,1743742282719,-1782.21,0.00052602,120]
[357103639,1743742282731,-2008.49,0.00052602,120]
[357103640,1743742282745,-810.96,0.00052602,120]
[357103641,1743742282757,-523.36,0.00052602,120]
[357103642,1743742282769,-2260.47,0.00052602,120]
[357103643,1743742282782,-668.1,0.00052602,120]
[357103644,1743742282794,-500.0,0.00052602,120]
[357103645,1743742282807,-2235.26,0.00052602,120]
[357103646,1743742282819,-2123.04,0.00052602,120]
[357103647,1743742282832,-1337.55,0.00052602,30]
[357103648,1743742282846,-1605.02,0.00052602,120]
[357103649,1743742282859,-1657.36,0.00052602,120]
[357103650,1743742282872,-1702.41,0.00052602,120]
[357103651,1743742282888,-1553.62,0.00052602,120]
[357103652,1743742282902,-500.0,0.00052602,120]
[357103653,1743742282916,-1286.62,0.00052602,120]
[357103654,1743742282929,-1768.28,0.00052602,120]
[357103655,1743742282942,-1152.52,0.00052602,120]
[357103656,1743742282955,-2735.4,0.00052602,120]
[357103657,1743742282968,-741.55,0.00052602,120]
[357103658,1743742282981,-500.0,0.00052602,120]
[357103659,1743742282993,-2305.38,0.00052602,120]
[357103660,1743742283006,-1520.4,0.00052602,120]
[357103661,1743742283019,-1181.69,0.00052602,120]
[357103662,1743742283033,-1494.55,0.00052602,120]
[357103663,1743742283046,-2859.57,0.00052602,120]
[357103664,1743742283059,-1642.16,0.00052602,120]
[357103665,1743742283072,-1845.58,0.00052602,120]
[357103666,1743742283086,-500.0,0.00052602,120]
[357103667,1743742283099,-725.01,0.00052602,120]
[357103668,1743742283112,-1790.85,0.00052602,120]
[357103669,1743742283125,-500.0,0.00052602,120]
[357103670,1743742283139,-1795.3,0.00052602,120]
[357103671,1743742283153,-2215.63,0.00052602,120]
[357103672,1743742283166,-500.0,0.00052602,120]
[357103673,1743742283176,-500.0,0.00052602,120]
[357103674,1743742283185,-1621.94,0.00052602,120]
[357103675,1743742283396,-1984.67,0.00052602,120]
[357103676,1743742283408,-500.0,0.00052602,120]
[357103677,1743742283417,-500.0,0.00052602,120]
[357103678,1743742283427,-1238.29,0.00052602,120]
[357103679,1743742283437,-2200.62,0.00052602,120]
[357103680,1743742283447,-534.24,0.00052602,120]
[357103681,1743742283457,-1910.5,0.00052602,120]
[357103682,1743742283467,-1140.44,0.00052602,120]
[357103683,1743742283476,-2219.86,0.00052602,120]
[357103684,1743742283486,-500.0,0.00052602,120]
[357103685,1743742283496,-500.0,0.00052602,120]
[357103686,1743742283506,-2020.09,0.00052602,120]
[357103687,1743742283515,-2048.88,0.00052602,120]
[357103688,1743742283525,-500.0,0.00052602,120]
[357103689,1743742283535,-804.71,0.00052602,120]
[357103690,1743742283544,-2025.27,0.00052602,120]
[357103691,1743742283554,-634.27,0.00052602,120]
[357103692,1743742283563,-558.62,0.00052602,120]
[357103693,1743742283573,-1033.99,0.00052602,120]
[357103694,1743742283583,-2611.84,0.00052602,120]
[357103695,1743742283592,-1942.56,0.00052602,120]
[357103696,1743742283602,-1677.91,0.00052602,120]
[357103697,1743742283612,-624.53,0.00052602,120]
[357103698,1743742283621,-2219.22,0.00052602,120]
[357103699,1743742283632,-2008.94,0.00052602,120]
[357103700,1743742283642,-751.55,0.00052602,120]
[357103701,1743742283651,-1907.67,0.00052602,120]
[357103702,1743742283661,-2210.43,0.00052602,120]
[357103703,1743742283671,-1861.33,0.00052602,120]
[357103704,1743742283680,-607.75,0.00052602,120]
[357103705,1743742283690,-10738.0,0.00052602,2]
[357103706,1743742283699,-525.26,0.00052602,120]
[357103707,1743742283708,-127491.97,0.00052602,7]
[357103708,1743742283718,-829.28,0.00052602,120]
[357103709,1743742283729,-500.0,0.00052602,120]
[357103710,1743742283740,-583.75,0.00052602,120]
[357103711,1743742283751,-2229.15,0.00052602,120]
[357103712,1743742283761,-1669.74,0.00052602,120]
[357103713,1743742283772,-500.0,0.00052602,120]
[357103714,1743742283782,-500.0,0.00052602,2]
[357103715,1743742283792,-529.37,0.00052602,120]
[357103716,1743742283802,-500.0,0.00052602,120]
[357103717,1743742283813,-500.0,0.00052602,2]
[357103718,1743742283823,-151.0,0.00052603,120]
[357103719,1743742283833,-5048.0634,0.00052624,30]
[357103720,1743742283842,-1054.76,0.00052779,2]
[357103721,1743742283851,-236.0418172,0.000528,120]
[357103722,1743742283861,-1627.45,0.00052876,120]
[357103723,1743742283871,-1661.534427,0.00052876,120]
[357103724,1743742283884,-1847.248262,0.00052876,120]
[357103725,1743742283893,-668.69,0.00052876,120]
[357103726,1743742283903,-500.0,0.00052876,120]
[357103727,1743742283912,-1018.55,0.00052876,10]
[357103728,1743742283923,-528.07,0.00052876,120]
[357103729,1743742283932,-500.0,0.00052876,30]
[357103730,1743742283942,-500.0,0.00052876,120]
[357103731,1743742283952,-2000.0,0.00052876,2]
[357103732,1743742283962,-636.7,0.00052876,120]
[357103733,1743742283971,-2104.44,0.00052876,120]
[357103734,1743742283981,-500.0,0.00052876,120]
[357103735,1743742283990,-1964.9,0.00052876,120]
[357103736,1743742284000,-500.0,0.00052876,120]
[357103737,1743742284009,-3250.94,0.00052876,2]
[357103738,1743742284019,-1041.18,0.00052876,120]
[357103739,1743742284028,-500.0,0.00052876,120]
[357103740,1743742284037,-1836.7,0.00052876,120]
[357103741,1743742284047,-500.0,0.00052876,120]
[357103742,1743742284056,-561.86,0.00052876,120]
[357103743,1743742284066,-1026.47,0.00052876,120]
[357103744,1743742284075,-500.0,0.00052876,120]
[357103745,1743742284085,-1708.57,0.00052876,120]
[357103746,1743742284095,-2260.17,0.00052876,120]
[357103747,1743742284104,-1847.64,0.00052876,120]
[357103748,1743742284113,-1600.29,0.00052876,120]
[357103749,1743742284123,-972.82,0.00052876,120]
[357103750,1743742284133,-1667.89,0.00052876,120]
[357103751,1743742284143,-1074.38,0.00052876,30]
[357103752,1743742284152,-2122.56,0.00052876,120]
[357103753,1743742284162,-500.0,0.00052876,120]
[357103754,1743742284172,-1956.99,0.00052876,120]
[357103755,1743742284182,-1120.02,0.00052876,120]
[357103756,1743742284191,-500.0,0.00052876,120]
[357103757,1743742284201,-1669.42,0.00052876,120]
[357103758,1743742284210,-500.0,0.00052876,120]
[357103759,1743742284219,-533.22,0.00052876,2]
[357103760,1743742284229,-2109.35,0.00052876,120]
[357103761,1743742284238,-2628.48,0.00052876,120]
[357103762,1743742284247,-560.52,0.00052876,120]
[357103763,1743742284257,-1936.83,0.00052876,120]
[357103764,1743742284266,-1759.76,0.00052876,120]
[357103765,1743742284275,-2302.46,0.00052876,120]
[357103766,1743742284285,-1845.54,0.00052876,120]
[357103767,1743742284294,-2235.82,0.00052876,120]
[357103768,1743742284303,-650.53,0.00052876,120]
[357103769,1743742284313,-1764.75,0.00052876,120]
[357103770,1743742284322,-2294.51,0.00052876,120]
[357103771,1743742284332,-1798.97,0.00052876,120]
[357103772,1743742284342,-2061.78,0.00052876,120]
[357103773,1743742284351,-2212.69,0.00052876,120]
[357103774,1743742284361,-2600.67,0.00052876,120]
[357103775,1743742284370,-1758.13,0.00052876,120]
[357103776,1743742284379,-2390.89,0.00052876,120]
[357103777,1743742284389,-1773.07,0.00052876,120]
[357103778,1743742284398,-1780.62,0.00052876,120]
[357103779,1743742284407,-2213.48,0.00052876,120]
[357103780,1743742284416,-500.0,0.00052876,120]
[357103781,1743742284426,-1740.8,0.00052876,120]
[357103782,1743742284435,-1782.21,0.00052876,120]
[357103783,1743742284446,-2008.49,0.00052876,120]
[357103784,1743742284455,-810.96,0.00052876,120]
[357103785,1743742284464,-523.36,0.00052876,120]
[357103786,1743742284474,-2260.47,0.00052876,120]
[357103787,1743742284483,-668.1,0.00052876,120]
[357103788,1743742284492,-500.0,0.00052876,120]
[357103789,1743742284502,-2235.26,0.00052876,120]
[357103790,1743742284511,-2123.04,0.00052876,120]
[357103791,1743742284521,-1337.55,0.00052876,30]
[357103792,1743742284531,-1605.02,0.00052876,120]
[357103793,1743742284541,-1657.36,0.00052876,120]
[357103794,1743742284551,-1702.41,0.00052876,120]
[357103795,1743742284560,-1553.62,0.00052876,120]
[357103796,1743742284569,-500.0,0.00052876,120]
[357103797,1743742284579,-1286.62,0.00052876,120]
[357103798,1743742284588,-1768.28,0.00052876,120]
[357103799,1743742284598,-1152.52,0.00052876,120]
[357103800,1743742284608,-2735.4,0.00052876,120]
[357103801,1743742284618,-741.55,0.00052876,120]
[357103802,1743742284627,-364.65195813,0.00052876,120]
[357103803,1743742284636,-2305.38,0.00052876,120]
[357103804,1743742284646,-1520.4,0.00052876,120]
[357103805,1743742284656,-1181.69,0.00052876,120]
[357103806,1743742284666,-1494.55,0.00052876,120]
[357103807,1743742284676,-2859.57,0.00052876,120]
[357103808,1743742284686,-1642.16,0.00052876,120]
[357103809,1743742284696,-1845.58,0.00052876,120]
[357103810,1743742284706,-500.0,0.00052876,120]
[357103811,1743742284716,-725.01,0.00052876,120]
[357103812,1743742284725,-1790.85,0.00052876,120]
[357103813,1743742284736,-500.0,0.00052876,120]
[357103814,1743742284746,-1795.3,0.00052876,120]
[357103815,1743742284756,-2215.63,0.00052876,120]
[357103816,1743742284766,-500.0,0.00052876,120]
[357103817,1743742284776,-500.0,0.00052876,120]
[357103818,1743742284786,-1621.94,0.00052876,120]
[357103819,1743742284796,-1984.67,0.00052876,120]
[357103820,1743742284806,-500.0,0.00052876,120]
[357103821,1743742284816,-500.0,0.00052876,120]
[357103822,1743742284826,-1238.29,0.00052876,120]
[357103823,1743742284836,-2200.62,0.00052876,120]
[357103824,1743742284846,-534.24,0.00052876,120]
[357103825,1743742284856,-1910.5,0.00052876,120]
[357103826,1743742284867,-1140.44,0.00052876,120]
[357103827,1743742284879,-2219.86,0.00052876,120]
[357103828,1743742284890,-500.0,0.00052876,120]
[357103829,1743742284900,-500.0,0.00052876,120]
[357103830,1743742284911,-2020.09,0.00052876,120]
[357103831,1743742284922,-2048.88,0.00052876,120]
[357103832,1743742284931,-500.0,0.00052876,120]
[357103833,1743742284941,-804.71,0.00052876,120]
[357103834,1743742284951,-634.27,0.00052876,120]
[357103835,1743742284960,-2025.27,0.00052876,120]
[357103836,1743742284971,-558.62,0.00052876,120]
[357103837,1743742284981,-1033.99,0.00052876,120]
[357103838,1743742284990,-2611.84,0.00052876,120]
[357103839,1743742285000,-1942.56,0.00052876,120]
[357103840,1743742285010,-1677.91,0.00052876,120]
[357103841,1743742285019,-624.53,0.00052876,120]
[357103842,1743742285029,-2219.22,0.00052876,120]
[357103843,1743742285038,-2008.94,0.00052876,120]
[357103844,1743742285048,-751.55,0.00052876,120]
[357103845,1743742285058,-1907.67,0.00052876,120]
[357103846,1743742285068,-2210.43,0.00052876,120]
[357103847,1743742285078,-1861.33,0.00052876,120]
[357103848,1743742285087,-607.75,0.00052876,120]
[357103849,1743742285096,-10738.0,0.00052876,2]
[357103850,1743742285106,-525.26,0.00052876,120]
[357103851,1743742285115,-127491.97,0.00052876,7]
[357103852,1743742285124,-829.28,0.00052876,120]
[357103853,1743742285133,-500.0,0.00052876,120]
[357103854,1743742285143,-583.75,0.00052876,120]
[357103855,1743742285152,-2229.15,0.00052876,120]
[357103856,1743742285162,-1669.74,0.00052876,120]
[357103857,1743742285171,-500.0,0.00052876,120]
[357103858,1743742285181,-500.0,0.00052876,2]
[357103859,1743742285190,-529.37,0.00052876,120]
[357103860,1743742285199,-500.0,0.00052876,120]
[357103861,1743742285209,-500.0,0.00052876,2]
[357103862,1743742285218,-188.35,0.0005298,120]
[357103863,1743742285227,-50000.0,0.00053,53]
[357103864,1743742285237,-574.94144119,0.00053,2]
[357103865,1743742285246,-500.0,0.00053,3]
[357103866,1743742285256,-3000.0,0.00053,30]
[357103867,1743742285265,-1550.0,0.00053,30]
[357103868,1743742285275,-360.48,0.00053,120]
[357103869,1743742285284,-500.0,0.00053,54]
[357103870,1743742285293,-288.38,0.00053,120]
[357103871,1743742285303,-1000000.0,0.00053,120]
[357103872,1743742285313,-1000000.0,0.00053,120]
[357103873,1743742285322,-605.84,0.00053,120]
[357103874,1743742285332,-715.44,0.00053,120]
[357103875,1743742285342,-907.81,0.00053,30]
[357103876,1743742285351,-3000.0,0.00053,30]
[357103877,1743742285360,-3000.0,0.00053,30]
[357103878,1743742285370,-3000.0,0.00053,30]
[357103879,1743742285380,-2047.33,0.00053,30]
[357103880,1743742285390,-600.0,0.00053,120]
[357103881,1743742285399,-20000.0,0.00053,120]
[357103882,1743742285410,-1000000.0,0.00053,120]
[357103883,1743742285419,-900.0,0.00053,2]
[357103884,1743742285429,-1627.45,0.0005315,120]
[357103885,1743742285439,-1661.534427,0.0005315,120]
[357103886,1743742285448,-1847.248262,0.0005315,120]
[357103887,1743742285458,-668.69,0.0005315,120]
[357103888,1743742285468,-500.0,0.0005315,120]
[357103889,1743742285477,-1018.55,0.0005315,10]
[357103890,1743742285487,-528.07,0.0005315,120]
[357103891,1743742285496,-500.0,0.0005315,30]
[357103892,1743742285507,-500.0,0.0005315,120]
[357103893,1743742285517,-2000.0,0.0005315,2]
[357103894,1743742285527,-636.7,0.0005315,120]
[357103895,1743742285537,-2104.44,0.0005315,120]
[357103896,1743742285546,-500.0,0.0005315,120]
[357103897,1743742285556,-1964.9,0.0005315,120]
[357103898,1743742285566,-500.0,0.0005315,120]
[357103899,1743742285576,-3250.94,0.0005315,2]
[357103900,1743742285585,-1041.18,0.0005315,120]
[357103901,1743742285595,-500.0,0.0005315,120]
[357103902,1743742285605,-1836.7,0.0005315,120]
[357103903,1743742285614,-500.0,0.0005315,120]
[357103904,1743742285624,-561.86,0.0005315,120]
[357103905,1743742285634,-1026.47,0.0005315,120]
[357103906,1743742285644,-500.0,0.0005315,120]
[357103907,1743742285655,-1708.57,0.0005315,120]
[357103908,1743742285665,-2260.17,0.0005315,120]
[357103909,1743742285674,-1847.64,0.0005315,120]
[357103910,1743742285684,-1600.29,0.0005315,120]
[357103911,1743742285694,-972.82,0.0005315,120]
[357103912,1743742285704,-1667.89,0.0005315,120]
[357103913,1743742285714,-1074.38,0.0005315,30]
[357103914,1743742285729,-2122.56,0.0005315,120]
[357103915,1743742285739,-500.0,0.0005315,120]
[357103916,1743742285760,-1956.99,0.0005315,120]
[357103917,1743742285814,-1120.02,0.0005315,120]
[357103918,1743742285926,-500.0,0.0005315,120]
[357103919,1743742286021,-1669.42,0.0005315,120]
[357103920,1743742286159,-500.0,0.0005315,120]
[357103921,1743742286286,-533.22,0.0005315,2]
[357103922,1743742286397,-2109.35,0.0005315,120]
[357103923,1743742286501,-2628.48,0.0005315,120]
[357103924,1743742286611,-560.52,0.0005315,120]
[357103925,1743742286745,-1936.83,0.0005315,120]
[357103926,1743742286835,-1759.76,0.0005315,120]
[357103927,1743742286934,-2302.46,0.0005315,120]
[357103928,1743742286999,-1845.54,0.0005315,120]
[357103929,1743742287010,-2235.82,0.0005315,120]
[357103930,1743742287020,-650.53,0.0005315,120]
[357103931,1743742287030,-1764.75,0.0005315,120]
[357103932,1743742287039,-2294.51,0.0005315,120]
[357103933,1743742287049,-1798.97,0.0005315,120]
[357103934,1743742287059,-2061.78,0.0005315,120]
[357103935,1743742287069,-2212.69,0.0005315,120]
[357103936,1743742287078,-2600.67,0.0005315,120]
[357103937,1743742287087,-1758.13,0.0005315,120]
[357103938,1743742287096,-2390.89,0.0005315,120]
[357103939,1743742287105,-1773.07,0.0005315,120]
[357103940,1743742287114,-1780.62,0.0005315,120]
[357103941,1743742287124,-2213.48,0.0005315,120]
[357103942,1743742287134,-500.0,0.0005315,120]
[357103943,1743742287143,-1740.8,0.0005315,120]
[357103944,1743742287153,-1782.21,0.0005315,120]
[357103945,1743742287162,-2008.49,0.0005315,120]
[357103946,1743742287171,-810.96,0.0005315,120]
[357103947,1743742287181,-523.36,0.0005315,120]
[357103948,1743742287190,-2260.47,0.0005315,120]
[357103949,1743742287199,-668.1,0.0005315,120]
[357103950,1743742287208,-500.0,0.0005315,120]
[357103951,1743742287218,-2235.26,0.0005315,120]
[357103952,1743742287227,-2123.04,0.0005315,120]
[357103953,1743742287237,-1337.55,0.0005315,30]
[357103954,1743742287246,-1605.02,0.0005315,120]
[357103955,1743742287256,-1657.36,0.0005315,120]
[357103956,1743742287266,-1553.62,0.0005315,120]
[357103957,1743742287276,-1702.41,0.0005315,120]
[357103958,1743742287286,-500.0,0.0005315,120]
[357103959,1743742287296,-1286.62,0.0005315,120]
[357103960,1743742287306,-1768.28,0.0005315,120]
[357103961,1743742287317,-1152.52,0.0005315,120]
[357103962,1743742287328,-2735.4,0.0005315,120]
[357103963,1743742287339,-741.55,0.0005315,120]
[357103964,1743742287354,-2305.38,0.0005315,120]
[357103965,1743742287364,-1520.4,0.0005315,120]
[357103966,1743742287375,-1181.69,0.0005315,120]
[357103967,1743742287385,-1494.55,0.0005315,120]
[357103968,1743742287395,-2859.57,0.0005315,120]
[357103969,1743742287405,-1642.16,0.0005315,120]
[357103970,1743742287415,-1845.58,0.0005315,120]
[357103971,1743742287425,-500.0,0.0005315,120]
[357103972,1743742287435,-725.01,0.0005315,120]
[357103973,1743742287446,-1790.85,0.0005315,120]
[357103974,1743742287456,-500.0,0.0005315,120]
[357103975,1743742287466,-1795.3,0.0005315,120]
[357103976,1743742287476,-2215.63,0.0005315,120]
[357103977,1743742287485,-397.8820489,0.0005315,120]
[357103978,1743742287494,-500.0,0.0005315,120]
[357103979,1743742287503,-1621.94,0.0005315,120]
[357103980,1743742287512,-1984.67,0.0005315,120]
[357103981,1743742287522,-218.21846587,0.0005315,120]
[357103982,1743742287531,-500.0,0.0005315,120]
[357103983,1743742287541,-1238.29,0.0005315,120]
[357103984,1743742287550,-2200.62,0.0005315,120]
[357103985,1743742287559,-534.24,0.0005315,120]
[357103986,1743742287569,-1910.5,0.0005315,120]
[357103987,1743742287580,-1140.44,0.0005315,120]
[357103988,1743742287590,-2219.86,0.0005315,120]
[357103989,1743742287600,-500.0,0.0005315,120]
[357103990,1743742287610,-500.0,0.0005315,120]
[357103991,1743742287620,-2020.09,0.0005315,120]
[357103992,1743742287630,-2048.88,0.0005315,120]
[357103993,1743742287641,-804.71,0.0005315,120]
[357103994,1743742287651,-634.27,0.0005315,120]
[357103995,1743742287661,-2025.27,0.0005315,120]
[357103996,1743742287671,-558.62,0.0005315,120]
[357103997,1743742287680,-1033.99,0.0005315,120]
[357103998,1743742287691,-2611.84,0.0005315,120]
[357103999,1743742287701,-1942.56,0.0005315,120]
[357104000,1743742287711,-1677.91,0.0005315,120]
[357104001,1743742287876,-2219.22,0.0005315,120]
[357104002,1743742287892,-624.53,0.0005315,120]
[357104003,1743742287902,-2008.94,0.0005315,120]
[357104004,1743742287912,-751.55,0.0005315,120]
[357104005,1743742287923,-1907.67,0.0005315,120]
[357104006,1743742287934,-2210.43,0.0005315,120]
[357104007,1743742287945,-1861.33,0.0005315,120]
[357104008,1743742287955,-607.75,0.0005315,120]
[357104009,1743742287967,-10738.0,0.0005315,2]
[357104010,1743742287977,-525.26,0.0005315,120]
[357104011,1743742287987,-127491.97,0.0005315,7]
[357104012,1743742287997,-829.28,0.0005315,120]
[357104013,1743742288007,-500.0,0.0005315,120]
[357104014,1743742288017,-583.75,0.0005315,120]
[357104015,1743742288027,-2229.15,0.0005315,120]
[357104016,1743742288037,-1669.74,0.0005315,120]
[357104017,1743742288050,-500.0,0.0005315,120]
[357104018,1743742288061,-500.0,0.0005315,2]
[357104019,1743742288071,-529.37,0.0005315,120]
[357104020,1743742288081,-500.0,0.0005315,120]
[357104021,1743742288092,-500.0,0.0005315,2]
[357104022,1743742288103,-1000.0,0.00053245,60]
[357104023,1743742288114,-1000.0,0.00053245,60]
[357104024,1743742288124,-1000.0,0.00053245,60]
[357104025,1743742288134,-1000.0,0.00053245,60]
[357104026,1743742288144,-1000.0,0.00053245,60]
[357104027,1743742288154,-1000.0,0.00053245,60]
[357104028,1743742288164,-1000.0,0.00053245,60]
[357104029,1743742288174,-1000.0,0.00053245,60]
[357104030,1743742288184,-1000.0,0.00053245,60]
[357104031,1743742288194,-1000.0,0.00053245,60]
[357104032,1743742288204,-1000.0,0.00053245,60]
[357104033,1743742288214,-1000.0,0.00053245,60]
[357104034,1743742288224,-1000.0,0.00053245,60]
[357104035,1743742288234,-1000.0,0.00053245,60]
[357104036,1743742288244,-1000.0,0.00053245,60]
[357104037,1743742288254,-1000.0,0.00053245,60]
[357104038,1743742288265,-1000.0,0.00053245,60]
[357104039,1743742288275,-1000.0,0.00053245,60]
[357104040,1743742288285,-1000.0,0.00053245,60]
[357104041,1743742288295,-446.66,0.00053245,60]
[357104042,1743742288306,-445.67022965,0.0005331,2]
[357104043,1743742288316,-15676.69163696,0.00053333,2]
[357104044,1743742288326,-288.38,0.000534,120]
[357104045,1743742288336,-2000.0,0.000534,2]